bitfinex/quotes_ETHUSD_20251025
["timestamp","ask_amount","ask_price","bid_price","bid_amount"]
[1761389598342,0.001,3945.1,3945.0,3.182]
[1761389604752,0.001,3945.1,3944.9,0.002]
[1761389604943,0.001,3945.1,3945.0,3.182]
[1761389605386,0.4533,3945.1,3945.0,3.182]
[1761389605743,1.00072123,3945.1,3945.0,3.182]
[1761389606170,4.40505447,3945.1,3945.0,3.182]
[1761389606358,1.87020863,3945.1,3945.0,3.182]
[1761389606881,2.63134307,3945.1,3945.0,3.182]
[1761389607449,2.75774307,3945.1,3945.0,3.182]
[1761389612259,1.88825567,3945.1,3945.0,3.182]
[1761389613495,1.43595567,3945.1,3945.0,3.182]
[1761389613862,0.67482123,3945.1,3945.0,3.182]
[1761389615001,0.67482123,3945.1,3945.0,3.184]
[1761389617706,0.67482123,3945.1,3945.0,5.71885424]
[1761389617874,0.54842123,3945.1,3945.0,3.5747]
[1761389619509,0.54842123,3945.1,3945.0,6.10955424]
[1761389620006,0.54842123,3945.1,3945.0,6.97440752]
[1761389620210,0.001,3945.1,3945.0,6.97440752]
[1761389620504,0.001,3945.1,3945.0,4.43955328]
[1761389620708,0.001,3945.1,3945.0,3.5747]
[1761389621809,0.001,3945.1,3945.0,3.184]
[1761389624016,0.43,3945.1,3945.0,3.184]
[1761389624878,0.001,3945.1,3945.0,3.184]
[1761389634842,0.43,3945.1,3945.0,3.184]
[1761389635733,0.001,3945.1,3945.0,0.002]
[1761389635931,0.43,3945.1,3945.0,3.184]
[1761389637822,0.001,3945.1,3945.0,3.184]
[1761389641649,2.98768999,3945.1,3945.0,3.184]
[1761389641857,4.22645777,3945.1,3945.0,3.184]
[1761389642767,7.82663005,3945.1,3945.0,3.184]
[1761389645332,8.33351005,3945.1,3945.0,3.184]
[1761389645858,9.0946947,3945.1,3945.0,3.184]
[1761389646324,8.33351005,3945.1,3945.0,3.184]
[1761389650159,8.88080954,3945.1,3945.0,3.184]
[1761389652047,9.64199419,3945.1,3945.0,3.184]
[1761389652240,8.88080954,3945.1,3945.0,3.184]
[1761389657369,8.88078084,3945.1,3945.0,3.184]
[1761389659836,9.64196549,3945.1,3945.0,3.184]
[1761389660569,8.88078084,3945.1,3945.0,3.184]
[1761389660867,10.32605397,3945.1,3945.0,3.184]
[1761389666394,11.8813489,3945.1,3945.0,3.184]
[1761389667497,11.19716549,3945.1,3945.0,3.184]
[1761389671803,8.6623755,3945.1,3945.0,3.184]
[1761389672007,9.34666054,3945.1,3945.0,3.184]
[1761389673013,11.88145053,3945.1,3945.0,3.184]
[1761389674812,11.19716549,3945.1,3945.0,3.184]
[1761389678130,11.88145192,3945.1,3945.0,3.184]
[1761389684067,3.04186276,3944.8,3944.7,0.002]
[1761389684336,3.04186276,3944.8,3943.1,1.36701486]
[1761389684337,0.50688,3944.1,3942.1,0.52307187]
[1761389684560,1.5552,3942.3,3941.3,1.15223439]
[1761389684735,0.68314873,3943.0,3942.1,0.454]
[1761389684916,0.95118557,3944.0,3942.1,0.454]
[1761389684917,0.54657825,3943.2,3942.1,0.454]
[1761389685117,5.15537228,3943.5,3942.6,2.53634305]
[1761389685118,0.54657825,3943.4,3942.6,2.53634305]
[1761389685319,0.54657825,3943.4,3942.7,6.22861235]
[1761389685551,3.08246488,3943.4,3943.3,0.1699]
[1761389685721,4.63766488,3943.4,3943.3,3.3559]
[1761389686544,5.39913355,3943.4,3943.3,3.3559]
[1761389688030,4.8525553,3943.4,3943.3,3.3559]
[1761389688251,2.31666867,3943.4,3943.3,3.3559]
[1761389688945,2.31666867,3943.4,3943.3,3.73056]
[1761389688946,0.76146867,3943.4,3943.3,3.73056]
[1761389689151,3.6308,3944.8,3943.3,4.12126]
[1761389689152,3.60017228,3944.4,3943.3,4.12126]
[1761389689353,3.60017228,3944.1,3943.4,0.3907]
[1761389689522,0.76133726,3943.9,3943.4,0.3907]
[1761389689721,0.76133726,3943.9,3943.4,1.25777785]
[1761389689943,0.76133726,3943.9,3943.5,2.53581843]
[1761389690134,0.76133726,3943.9,3943.6,2.53572334]
[1761389690338,0.76133726,3943.9,3943.7,5.72168697]
[1761389690535,0.76133726,3943.9,3943.7,3.5767]
[1761389690856,0.76133726,3943.9,3943.7,6.11237091]
[1761389691055,0.76133726,3943.9,3943.8,2.92632553]
[1761389691257,3.60017228,3944.4,3944.0,2.53547112]
[1761389691556,2.31650248,3944.3,3944.1,3.2974]
[1761389692158,1.5552,3944.3,3944.1,3.2974]
[1761389692658,0.76130248,3944.2,3944.1,3.2974]
[1761389694065,0.88770248,3944.2,3944.1,3.2974]
[1761389694863,0.88770248,3944.2,3944.1,3.187]
[1761389696763,0.87862458,3944.2,3944.1,3.187]
[1761389698763,2.43382458,3944.2,3944.1,3.187]
[1761389700906,0.87862458,3944.2,3944.1,5.83283267]
[1761389701109,0.87862458,3944.2,3944.1,3.6881]
[1761389701460,0.87862458,3944.2,3944.1,6.22353267]
[1761389702277,0.87862458,3944.2,3944.1,3.6881]
[1761389703000,0.87862458,3944.2,3944.1,3.6901]
[1761389703170,0.87862458,3944.2,3944.1,3.2994]
[1761389703588,0.87862458,3944.2,3944.1,5.83483267]
[1761389704179,0.87862458,3944.2,3944.1,6.22553267]
[1761389704382,0.001,3944.3,3944.2,2.53536838]
[1761389704604,0.001,3944.3,3944.2,2.92606838]
[1761389704800,0.001,3944.3,3944.2,2.95142206]
[1761389705004,0.1274,3944.3,3944.2,3.05246838]
[1761389705189,0.001,3944.3,3944.2,4.02881004]
[1761389705575,0.001,3944.3,3944.2,4.15521004]
[1761389706094,0.001,3944.3,3944.2,4.18056372]
[1761389710580,0.001,3944.3,3944.2,4.15521004]
[1761389710900,0.001,3944.3,3944.2,4.18056372]
[1761389713481,0.001,3944.3,3944.2,4.15521004]
[1761389713680,0.001,3944.3,3944.2,4.18056372]
[1761389714477,0.001,3944.3,3944.2,4.15521004]
[1761389714892,0.001,3944.3,3944.2,4.18056372]
[1761389715897,0.001,3944.3,3944.2,4.15521004]
[1761389716103,0.001,3944.3,3944.2,4.18056372]
[1761389718913,0.001,3944.3,3944.2,4.15521004]
[1761389719122,0.001,3944.3,3944.2,7.34021004]
[1761389725126,0.001,3944.3,3944.2,7.21381004]
[1761389730845,0.001,3944.3,3944.2,6.82111004]
[1761389731048,0.001,3944.3,3944.2,7.21181004]
[1761389735051,0.001,3944.3,3944.2,7.33821004]
[1761389739452,0.001,3944.3,3944.2,6.94751004]
[1761389740164,0.001,3944.3,3944.2,7.33821004]
[1761389741936,0.001,3944.3,3944.2,7.21181004]
[1761389748556,0.001,3944.3,3944.2,6.82111004]
[1761389749294,0.001,3944.3,3944.2,7.21181004]
[1761389750694,0.001,3944.3,3944.2,6.82111004]
[1761389754267,0.001,3944.3,3944.2,3.63811004]
[1761389754468,0.4504,3944.3,3944.2,5.84376838]
[1761389754868,0.001,3944.3,3944.2,5.84376838]
[1761389767608,0.4614,3944.3,3944.2,0.1264]
[1761389767808,0.4614,3944.3,3944.2,2.53536838]
[1761389768014,0.4614,3944.3,3944.2,5.71636838]
[1761389788593,0.001,3944.3,3944.2,5.71636838]
[1761389789163,0.4615,3944.3,3944.2,5.71636838]
[1761389802605,0.923,3944.3,3944.2,5.71636838]
[1761389809051,0.4625,3944.3,3944.2,5.71636838]
[1761389809222,0.001,3944.3,3944.2,6.92532675]
[1761389812450,0.001,3944.3,3944.2,5.71636838]
[1761389815843,0.001,3944.3,3944.2,6.10706838]
[1761389816041,0.001,3944.3,3944.2,5.71636838]
[1761389819242,0.001,3944.3,3944.2,5.84276838]
[1761389821371,0.001,3944.3,3944.2,6.23346838]
[1761389821573,0.001,3944.3,3944.2,7.48149676]
[1761389829172,0.001,3944.3,3944.2,7.09079676]
[1761389829976,0.4581,3944.3,3944.2,7.09079676]
[1761389830581,0.001,3944.3,3944.2,7.09079676]
[1761389833488,0.001,3944.3,3944.2,7.48149676]
[1761389833787,0.001,3944.3,3944.2,7.09079676]
[1761389847833,0.001,3944.3,3944.2,7.48149676]
[1761389848192,0.001,3944.3,3944.2,7.09079676]
[1761389848425,0.001,3944.3,3944.2,7.48149676]
[1761389849224,0.001,3944.3,3944.2,7.09079676]
[1761389871473,0.001,3944.3,3944.2,7.48149676]
[1761389872986,0.001,3944.3,3944.2,7.09079676]
[1761389876304,0.001,3944.3,3944.2,8.64599676]
[1761389876458,0.001,3944.3,3944.2,9.03669676]
[1761389881378,0.001,3944.3,3944.2,8.64599676]
[1761389881782,0.001,3944.3,3944.2,9.03669676]
[1761389882168,0.001,3944.3,3944.2,9.71329676]
[1761389882370,0.001,3944.3,3944.2,9.32259676]
[1761389883269,0.001,3944.3,3944.2,9.71329676]
[1761389883701,0.001,3944.3,3944.2,9.32259676]
[1761389884785,0.001,3944.3,3944.2,12.92084246]
[1761389886396,0.001,3944.3,3944.2,12.24424246]
[1761389893522,0.4727,3944.3,3944.2,8.64499676]
[1761389894719,0.001,3944.3,3944.2,2.66176838]
[1761389894921,0.4727,3944.3,3944.2,5.84176838]
[1761389906944,0.4727,3944.3,3944.2,2.66176838]
[1761389907139,0.4727,3944.3,3944.2,5.84176838]
[1761389908658,0.4727,3944.3,3944.2,3.18]
[1761389908826,0.4727,3944.3,3944.2,6.94992596]
[1761389909158,0.9454,3944.3,3944.2,6.94992596]
[1761389910648,0.9454,3944.3,3944.2,4.41455758]
[1761389914435,0.9454,3944.3,3944.1,0.002]
[1761389914639,0.5981,3944.2,3944.1,0.002]
[1761389914941,0.5981,3944.2,3944.1,3.182]
[1761389915117,1.35936771,3944.2,3944.1,3.182]
[1761389915316,1.49540448,3944.2,3944.1,3.182]
[1761389923663,1.49540448,3944.2,3944.1,5.71743267]
[1761389924468,1.49640448,3944.2,3944.1,5.71743267]
[1761389926363,1.36036771,3944.2,3944.1,5.71743267]
[1761389928768,1.36036771,3944.2,3944.1,3.182]
[1761389934061,0.88866771,3944.2,3944.1,3.182]
[1761389934260,0.88866771,3944.2,3944.1,5.71743267]
[1761389934758,1.32866771,3944.2,3944.1,5.71743267]
[1761389936058,1.20226771,3944.2,3944.1,5.71743267]
[1761389941884,1.20226771,3944.2,3944.1,3.182]
[1761389942081,1.33523448,3944.2,3944.1,3.182]
[1761389942580,1.33523448,3944.2,3944.1,5.71743267]
[1761389942884,1.20226771,3944.2,3944.1,5.71743267]
[1761389943084,1.20226771,3944.2,3944.1,3.182]
[1761389944002,1.74979873,3944.2,3944.1,3.182]
[1761389944210,1.7498014,3944.2,3944.1,3.182]
[1761389946409,0.98853369,3944.2,3944.1,3.182]
[1761389949308,1.17625171,3944.2,3944.1,3.182]
[1761389952588,0.62871802,3944.2,3944.1,3.182]
[1761389952918,0.441,3944.2,3944.1,3.182]
[1761389955143,0.98862448,3944.2,3944.1,3.182]
[1761389960238,3.52399286,3944.2,3944.1,3.182]
[1761389960627,4.28528955,3944.2,3944.1,3.182]
[1761389963830,1.74992117,3944.2,3944.1,3.182]
[1761389964141,5.04849045,3944.2,3944.1,3.182]
[1761389965110,2.51312207,3944.2,3944.1,3.182]
[1761389969725,1.30992117,3944.2,3944.1,3.182]
[1761389969920,1.75542117,3944.2,3944.1,3.182]
[1761389970177,1.30992117,3944.2,3944.1,3.182]
[1761389972237,1.75542117,3944.2,3944.1,3.182]
[1761389973119,1.30992117,3944.2,3944.1,3.182]
[1761389973318,1.75542117,3944.2,3944.1,3.182]
[1761389974768,2.35274796,3944.2,3944.1,3.182]
[1761389979071,1.90724796,3944.2,3944.1,3.182]
[1761389980280,2.36134796,3944.2,3944.1,3.182]
[1761389981254,4.89671634,3944.2,3944.1,3.182]
[1761389982289,2.36134796,3944.2,3944.1,3.182]
[1761389983302,4.89671634,3944.2,3944.1,3.182]
[1761389985228,2.36134796,3944.2,3944.1,3.182]
[1761389991315,2.36132076,3944.2,3944.1,3.182]
[1761389994895,1.90722076,3944.2,3944.1,3.182]
[1761389997812,1.30989397,3944.2,3944.1,3.6831]
[1761389997991,1.30989397,3944.2,3944.1,3.2924]
[1761389998525,1.30989397,3944.2,3944.1,3.182]
[1761389998725,1.74279397,3944.2,3944.1,3.182]
[1761389998891,2.25179278,3944.2,3944.1,3.182]
[1761390000257,4.35426116,3944.2,3944.1,3.182]
[1761390000435,4.78716116,3944.2,3944.1,3.182]
[1761390000731,2.25179278,3944.2,3944.1,3.182]
[1761390001622,5.29404116,3944.2,3944.1,0.002]
[1761390001931,5.29404116,3944.2,3944.1,3.182]
[1761390008335,6.84924116,3944.2,3944.1,3.182]
[1761390008518,7.53373777,3944.2,3944.1,3.182]
[1761390018851,11.13516428,3944.2,3944.1,0.002]
[1761390019281,10.45066767,3944.2,3944.1,0.002]
[1761390021174,11.36223143,3944.2,3944.1,0.002]
[1761390028857,10.45066767,3944.2,3944.1,0.002]
[1761390029756,13.63066767,3944.2,3944.1,0.002]
[1761390033158,14.99696514,3944.2,3944.1,0.002]
[1761390034361,21.38696514,3944.2,3944.1,0.002]
[1761390035861,20.02066767,3944.2,3944.1,0.002]
[1761390053186,3.04244124,3943.9,3943.8,0.002]
[1761390053410,14.65499566,3943.9,3943.8,0.002]
[1761390053604,15.12259566,3943.9,3943.8,0.002]
[1761390053986,15.22413976,3943.9,3943.8,0.002]
[1761390055758,18.82556627,3943.9,3943.8,0.002]
[1761390057625,2.53588274,3943.4,3943.3,0.002]
[1761390057789,2.53588274,3943.4,3941.8,0.1104]
[1761390057790,3.04372771,3941.9,3941.8,0.1104]
[1761390057987,2.60967728,3941.9,3941.8,0.1104]
[1761390058323,2.10279728,3941.9,3941.8,0.1104]
[1761390058705,2.10279728,3941.9,3941.8,0.5011]
[1761390059224,2.10279728,3941.9,3941.8,0.1104]
[1761390061024,2.10190655,3941.9,3941.8,0.1104]
[1761390061927,2.10190655,3941.9,3941.8,0.5011]
[1761390063151,0.50688,3941.5,3941.0,0.1104]
[1761390063425,2.38827191,3941.9,3940.0,0.1699]
[1761390063426,2.06208,3941.3,3940.0,0.1699]
[1761390063591,1.05358655,3941.2,3941.1,0.1104]
[1761390063792,0.50688,3941.2,3941.1,0.1104]
[1761390064136,0.50688,3941.2,3941.1,0.5011]
[1761390064913,0.50688,3941.2,3941.1,0.1104]
[1761390065115,2.79034352,3941.2,3941.1,0.1104]
[1761390066407,2.24363697,3941.2,3941.1,0.1104]
[1761390066812,2.06208,3941.2,3941.1,0.1104]
[1761390067018,0.50688,3941.2,3941.1,0.1104]
[1761390067414,2.60742282,3941.2,3941.1,0.1104]
[1761390067615,2.73462282,3941.2,3941.1,0.1104]
[1761390067817,1.17942282,3941.2,3941.1,0.1104]
[1761390068152,0.63408,3941.2,3941.1,0.1104]
[1761390068313,0.50688,3941.1,3940.4,3.185]
[1761390068510,4.0926789,3941.0,3940.0,0.5606]
[1761390068832,0.1272,3940.3,3940.0,0.5606]
[1761390069032,0.1272,3940.3,3940.1,0.3907]
[1761390075247,0.1272,3940.3,3940.1,0.3927]
[1761390079557,0.63408,3940.3,3940.2,3.189]
[1761390079927,0.63408,3940.3,3940.2,3.5797]
[1761390080764,0.1272,3940.3,3940.2,3.5797]
[1761390080938,0.1272,3940.3,3940.2,6.11764223]
[1761390082958,0.1272,3940.6,3940.4,2.53775824]
[1761390083324,0.1272,3940.6,3940.5,0.3907]
[1761390084254,0.1272,3940.6,3940.4,2.53775824]
[1761390085154,0.1272,3940.6,3940.4,2.92845824]
[1761390085553,0.1272,3940.6,3940.5,0.3907]
[1761390085725,0.1272,3940.6,3940.2,5.72694223]
[1761390085726,0.1272,3940.6,3940.2,3.189]
[1761390086118,0.1272,3940.6,3940.3,0.3907]
[1761390089560,0.1272,3940.6,3940.3,2.92857615]
[1761390089933,0.1272,3940.6,3940.4,0.3907]
[1761390090136,0.1272,3940.6,3940.5,2.53774901]
[1761390090459,0.54564579,3940.8,3940.5,2.53774901]
[1761390090460,0.1272,3940.8,3940.5,2.53774901]
[1761390090661,0.1272,3940.8,3940.7,2.53756026]
[1761390091063,0.5464268,3941.5,3940.7,0.3907]
[1761390091264,0.1272,3941.0,3940.8,0.3907]
[1761390091435,0.1272,3941.0,3940.9,2.53749143]
[1761390091837,0.1272,3941.0,3940.9,2.92819143]
[1761390092032,0.50688,3941.4,3941.0,2.53738162]
[1761390092268,0.50688,3941.5,3941.3,0.1104]
[1761390092430,1.05372355,3941.4,3941.3,0.1104]
[1761390092760,1.18092355,3941.4,3941.3,3.6901]
[1761390093259,1.18092355,3941.4,3941.3,3.2994]
[1761390093465,1.18092355,3941.4,3941.3,3.189]
[1761390094881,0.67404355,3941.4,3941.3,3.5797]
[1761390095055,0.1272,3941.4,3941.3,3.5797]
[1761390095251,0.1272,3941.4,3941.3,3.189]
[1761390096983,0.1272,3941.4,3941.3,3.5797]
[1761390097795,0.1272,3941.4,3941.3,6.1169339]
[1761390098577,0.1272,3941.5,3941.3,6.1169339]
[1761390098887,0.1272,3941.5,3941.4,0.3907]
[1761390099392,0.1272,3941.5,3941.4,2.92786953]
[1761390101196,0.1272,3941.5,3941.4,0.3907]
[1761390101596,0.1272,3941.5,3941.4,2.92786953]
[1761390101800,0.1272,3941.6,3941.4,0.3907]
[1761390102483,0.1272,3941.6,3941.4,2.92785327]
[1761390102800,0.1272,3941.6,3941.3,5.72623178]
[1761390102997,0.1272,3941.6,3941.3,3.189]
[1761390105530,0.94748,3941.5,3940.4,0.002]
[1761390105836,0.94748,3941.5,3940.5,3.188]
[1761390105837,2.06208,3941.1,3940.5,3.188]
[1761390106032,3.04426148,3941.1,3940.5,3.188]
[1761390106212,2.97805106,3941.0,3940.5,3.188]
[1761390106414,0.4406,3941.0,3940.5,3.188]
[1761390106621,0.4406,3940.9,3940.5,3.188]
[1761390107633,2.9779728,3941.1,3940.5,3.188]
[1761390107836,5.29090639,3941.1,3940.5,3.188]
[1761390108599,1.5552,3941.0,3940.5,3.188]
[1761390109165,5.29090639,3941.1,3940.5,3.188]
[1761390109332,1.5552,3941.0,3940.5,5.72574136]
[1761390109538,2.06208,3941.3,3940.6,2.53767906]
[1761390109735,0.50688,3941.1,3940.7,2.53761025]
[1761390109914,0.50688,3941.1,3940.8,3.188]
[1761390110546,0.89568318,3941.6,3940.8,3.188]
[1761390110547,0.68338318,3941.8,3941.1,2.53736266]
[1761390110835,0.50688,3941.8,3941.2,3.2994]
[1761390111037,1.05304223,3941.8,3941.2,3.2994]
[1761390111215,1.49364223,3941.8,3941.2,3.2994]
[1761390111634,3.04884223,3941.8,3941.2,3.2994]
[1761390111833,2.54196223,3941.7,3941.2,3.2994]
[1761390112030,0.54616223,3941.6,3941.2,3.189]
[1761390112228,0.50688,3941.5,3941.2,3.189]
[1761390112604,1.05304223,3941.5,3941.2,3.189]
[1761390112807,0.54616223,3941.4,3941.2,3.189]
[1761390113028,0.50688,3941.5,3941.2,3.189]
[1761390113371,0.50688,3941.6,3941.2,3.189]
[1761390113850,1.05304223,3941.6,3941.2,3.189]
[1761390115461,0.1272,3941.3,3941.2,3.189]
[1761390116030,0.1272,3941.3,3941.2,5.72629828]
[1761390116230,0.1272,3941.4,3941.2,3.5797]
[1761390116560,0.1272,3941.4,3941.3,0.3907]
[1761390117164,0.1272,3941.4,3941.2,3.189]
[1761390117475,0.1272,3941.4,3941.2,5.72629803]
[1761390118033,0.1272,3941.4,3941.2,6.11699803]
[1761390118434,0.1272,3941.4,3941.3,2.5372339]
[1761390119940,0.1272,3941.4,3941.3,2.9279339]
[1761390120266,0.67336223,3941.4,3941.3,2.9279339]
[1761390120486,0.1272,3941.6,3941.4,2.53714075]
[1761390120647,0.1272,3941.6,3941.5,3.187]
[1761390120853,0.67420976,3941.6,3941.5,5.72410516]
[1761390121198,0.54700976,3941.6,3941.5,6.11480516]
[1761390122457,0.54700976,3941.7,3941.5,6.11480516]
[1761390122657,0.54700976,3941.6,3941.5,6.11480516]
[1761390122871,0.54700976,3941.7,3941.5,6.11480516]
[1761390123077,0.1272,3941.8,3941.5,6.11480516]
[1761390123078,0.54700976,3941.6,3941.5,6.11480516]
[1761390123283,0.54700976,3941.7,3941.5,6.11480516]
[1761390123477,2.06208,3942.1,3941.7,2.53697478]
[1761390123478,0.68338318,3942.0,3941.7,2.53697478]
[1761390123653,0.68338318,3942.0,3941.8,5.72390145]
[1761390123654,0.54697488,3941.9,3941.8,5.72390145]
[1761390124067,0.54697488,3941.9,3941.8,6.11460145]
[1761390124470,0.54697488,3941.9,3941.8,3.5777]
[1761390124654,0.54697488,3941.9,3941.8,5.72391207]
[1761390124878,0.54697488,3941.9,3941.8,6.24181207]
[1761390125080,0.54697488,3942.1,3941.9,2.53684771]
[1761390125280,0.54697488,3942.0,3941.9,2.92754771]
[1761390126669,0.54697488,3942.0,3941.9,0.3907]
[1761390126976,0.54697488,3942.0,3941.9,2.92754771]
[1761390128384,0.54697488,3942.2,3941.9,2.92754771]
[1761390128589,0.54697488,3942.1,3941.9,2.92754771]
[1761390128787,0.54697488,3942.0,3941.9,2.92754771]
[1761390129101,0.54678969,3942.2,3941.9,2.92754771]
[1761390129311,0.54678969,3942.1,3941.9,2.92754771]
[1761390129460,0.54678969,3942.0,3941.9,2.92754771]
[1761390129810,0.54678969,3942.2,3941.9,2.92754771]
[1761390129973,0.54678969,3942.1,3941.8,3.3142]
[1761390130176,0.54678969,3942.0,3941.8,3.3142]
[1761390130360,0.54678969,3942.2,3941.8,3.3142]
[1761390130713,0.54678969,3942.1,3941.8,3.3142]
[1761390131000,0.54678969,3942.0,3941.8,5.85106626]
[1761390131173,0.54678969,3942.2,3941.9,2.53683707]
[1761390131374,1.24858711,3942.3,3941.9,2.53683707]
[1761390131375,0.54678969,3942.1,3941.9,2.53683707]
[1761390131589,0.54678969,3942.0,3941.9,2.53683707]
[1761390131905,0.54678969,3942.2,3942.1,2.536719]
[1761390132114,0.9120592,3942.6,3942.3,2.53657525]
[1761390132115,0.54670202,3942.5,3942.3,2.53657525]
[1761390132257,0.81068711,3942.6,3942.4,5.72348467]
[1761390132461,0.54663382,3942.5,3942.4,5.72348467]
[1761390132965,0.54663382,3942.5,3942.4,6.11418467]
[1761390133480,0.54663382,3942.7,3942.6,2.5363973]
[1761390133683,0.54663382,3942.7,3942.6,5.7233973]
[1761390134217,0.54663382,3942.8,3942.6,5.7233973]
[1761390134410,0.54663382,3942.7,3942.6,5.7233973]
[1761390134581,0.1272,3943.0,3942.6,5.7233973]
[1761390136520,0.1272,3943.0,3942.7,2.92703295]
[1761390136808,0.001,3943.3,3942.8,2.53626864]
[1761390136809,0.1272,3943.2,3942.8,2.53626864]
[1761390137010,0.1272,3943.2,3942.9,3.21236204]
[1761390137182,0.1272,3943.2,3942.9,3.187]
[1761390138025,0.1272,3943.2,3942.9,3.21236204]
[1761390138307,0.1272,3943.2,3942.9,3.5777]
[1761390138671,0.1272,3943.2,3942.9,3.187]
[1761390138885,0.001,3943.3,3943.1,0.1699]
[1761390139171,0.001,3943.3,3943.2,3.187]
[1761390139981,0.001,3943.3,3943.2,5.72301136]
[1761390140205,0.001,3943.3,3943.2,6.11371136]
[1761390140564,0.001,3943.3,3943.2,3.187]
[1761390143710,0.001,3943.3,3943.2,5.72301136]
[1761390144738,0.001,3943.3,3943.2,7.36885837]
[1761390150262,0.001,3943.3,3943.2,7.49605837]
[1761390151768,0.001,3943.3,3943.2,4.56934701]
[1761390151916,0.001,3943.3,3943.2,3.3142]
[1761390152115,0.001,3943.3,3943.2,5.85021136]
[1761390153866,0.001,3943.3,3943.2,6.24091136]
[1761390156337,0.001,3943.3,3943.2,5.85021136]
[1761390159145,0.001,3943.3,3943.2,6.24091136]
[1761390159347,0.001,3943.3,3943.2,7.49625837]
[1761390159782,0.001,3943.3,3943.2,11.10078759]
[1761390170097,0.001,3943.3,3943.2,10.71008759]
[1761390170512,0.001,3943.3,3943.2,11.10078759]
[1761390171605,0.001,3943.3,3943.2,10.71008759]
[1761390172477,0.4438,3943.3,3943.2,2.66321136]
[1761390172681,0.4438,3943.3,3943.2,5.84821136]
[1761390179110,0.001,3943.3,3943.2,5.84821136]
[1761390182238,0.001,3943.3,3943.2,9.45274058]
[1761390182556,0.001,3943.3,3943.2,11.05951821]
[1761390183132,0.001,3943.3,3943.2,10.66881821]
[1761390185219,0.001,3943.3,3943.2,5.84821136]
[1761390188608,0.001,3943.3,3943.2,9.45274058]
[1761390189012,0.001,3943.3,3943.2,9.84344058]
[1761390190724,0.001,3943.3,3943.2,6.23891136]
[1761390193229,0.001,3943.3,3943.2,5.84821136]
[1761390193430,0.001,3943.3,3943.2,7.27330656]
[1761390195733,0.001,3943.3,3943.2,7.66400656]
[1761390200857,0.001,3943.3,3943.2,7.27330656]
[1761390204381,0.4329,3943.3,3943.2,5.84421136]
[1761390216791,0.4329,3943.3,3943.2,3.181]
[1761390223807,1.19439379,3943.3,3943.2,3.181]
[1761390226750,1.32079379,3943.3,3943.2,3.181]
[1761390237532,3.85674083,3943.3,3943.2,3.181]
[1761390237687,4.49599696,3943.3,3943.2,3.181]
[1761390240686,1.96004992,3943.3,3943.2,3.181]
[1761390243433,2.50688724,3943.3,3943.2,3.181]
[1761390244411,5.04283428,3943.3,3943.2,3.181]
[1761390244632,2.07498724,3943.3,3943.2,3.181]
[1761390244835,1.43573111,3943.3,3943.2,3.181]
[1761390245039,1.87973111,3943.3,3943.2,3.181]
[1761390246054,0.001,3943.3,3943.2,6.10771136]
[1761390252885,0.001,3943.3,3943.2,9.70824621]
[1761390253032,0.001,3943.3,3943.2,11.06409249]
[1761390260191,0.001,3943.3,3943.2,10.67339249]
[1761390260548,0.001,3943.3,3943.2,11.06409249]
[1761390264287,0.001,3943.3,3943.2,3.89185764]
[1761390264586,0.001,3943.3,3943.2,7.07285764]
[1761390266756,0.001,3943.3,3943.2,7.46355764]
[1761390267286,0.001,3943.3,3943.2,7.07285764]
[1761390270901,0.001,3943.3,3943.2,10.67339249]
[1761390271189,0.001,3943.3,3943.2,11.06409249]
[1761390282522,0.001,3943.3,3943.2,10.67339249]
[1761390291218,0.4315,3943.3,3943.2,10.67339249]
[1761390291843,0.001,3943.3,3943.2,10.67339249]
[1761390293951,0.4315,3943.3,3943.2,7.07285764]
[1761390294420,0.001,3943.3,3943.2,7.07285764]
[1761390303352,0.001,3943.3,3943.2,10.67339249]
[1761390306465,0.001,3943.3,3943.2,10.57189013]
[1761390312290,0.001,3943.3,3943.2,10.96259013]
[1761390314271,0.001,3943.3,3943.2,10.57189013]
[1761390314641,0.001,3943.3,3943.2,6.97135528]
[1761390316675,0.001,3943.3,3943.2,5.71701136]
[1761390316676,0.4456,3943.3,3943.2,5.71701136]
[1761390322920,0.001,3943.3,3943.2,5.71701136]
[1761390327928,0.4456,3943.3,3943.2,5.71701136]
[1761390332533,0.4456,3943.3,3943.2,2.53601136]
[1761390332733,0.4456,3943.3,3943.2,5.71601136]
[1761390333138,0.001,3943.3,3943.2,5.71601136]
[1761390333504,0.4456,3943.3,3943.2,5.71601136]
[1761390340227,0.001,3943.3,3943.2,6.55414431]
[1761390340434,0.001,3943.3,3943.2,8.50004431]
[1761390341859,0.001,3943.3,3943.2,8.10934431]
[1761390343161,0.001,3943.3,3943.2,8.50004431]
[1761390346366,0.001,3943.3,3943.2,8.10934431]
[1761390346535,0.001,3943.3,3943.2,8.50004431]
[1761390350086,0.001,3943.3,3943.2,8.10934431]
[1761390350959,0.001,3943.7,3943.6,4.59783413]
[1761390351267,0.001,3943.7,3943.6,15.49624981]
[1761390351466,0.001,3943.7,3943.6,15.98841921]
[1761390352295,0.001,3943.7,3943.6,17.35065164]
[1761390353177,0.001,3943.7,3943.6,15.98841921]
[1761390356315,1e-08,3944.2,3944.1,3.04231267]
[1761390356466,0.001,3945.6,3944.1,3.04231267]
[1761390356467,0.4372,3945.2,3944.2,8.99551234]
[1761390356666,0.4382,3945.1,3944.2,10.29256146]
[1761390357178,0.4382,3945.1,3944.2,10.3940095]
[1761390358200,0.4382,3945.1,3944.2,9.48766038]
[1761390358900,0.4497,3944.9,3944.2,8.98078038]
[1761390359097,0.4497,3944.9,3944.2,9.78277394]
[1761390360769,0.4497,3944.9,3944.2,9.90917394]
[1761390361291,0.4497,3944.9,3944.2,10.29987394]
[1761390365689,0.4497,3944.9,3944.2,9.90917394]
[1761390366046,0.001,3945.1,3944.2,9.90917394]